[Event "Live Chess"]
[Site "Chess.com"]
[Date "2023.05.20"]
[Round "-"]
[White "Chesscoach_Golichenko"]
[Black "Singapourfeuj"]
[Result "1-0"]
[WhiteElo "2648"]
[BlackElo "2249"]
[TimeControl "300"]
[EndTime "10:29:51 PDT"]
[Termination "Chesscoach_Golichenko won by checkmate"]

1. d4 {[%clk 0:04:56.7]} 1... Nf6 {[%clk 0:04:58.4]} 2. c4 {[%clk 0:04:54.1]}
2... g6 {[%clk 0:04:57.4]} 3. Nc3 {[%clk 0:04:52.5]} 3... Bg7 {[%clk 0:04:56.2]}
4. e4 {[%clk 0:04:50.8]} 4... d6 {[%clk 0:04:55.5]} 5. Be2 {[%clk 0:04:49.9]}
5... O-O {[%clk 0:04:54.7]} 6. Bg5 {[%clk 0:04:48.6]} 6... h6 {[%clk 0:04:50.8]}
7. Be3 {[%clk 0:04:40]} 7... Nbd7 {[%clk 0:04:48.5]} 8. Qd2 {[%clk 0:04:38.6]}
8... Kh7 {[%clk 0:04:47.4]} 9. h3 {[%clk 0:04:30.9]} 9... c5 {[%clk 0:04:45.7]}
10. d5 {[%clk 0:04:28.4]} 10... b5 {[%clk 0:04:43.1]} 11. cxb5 {[%clk
0:04:26.3]} 11... a6 {[%clk 0:04:41.6]} 12. Nf3 {[%clk 0:04:22.7]} 12... axb5
{[%clk 0:04:40.4]} 13. Bxb5 {[%clk 0:04:21.4]} 13... Ba6 {[%clk 0:04:39.5]} 14.
Bxa6 {[%clk 0:04:15.8]} 14... Rxa6 {[%clk 0:04:38.4]} 15. O-O {[%clk 0:04:11.2]}
15... Qb6 {[%clk 0:04:37.2]} 16. Qc2 {[%clk 0:04:05.6]} 16... Rb8 {[%clk
0:04:35.2]} 17. Rfb1 {[%clk 0:04:01.3]} 17... Ne8 {[%clk 0:04:33.4]} 18. Nd2
{[%clk 0:03:57.8]} 18... Ne5 {[%clk 0:04:13]} 19. f4 {[%clk 0:03:54.2]} 19...
Nd7 {[%clk 0:04:10.8]} 20. b3 {[%clk 0:03:35.8]} 20... Bd4 {[%clk 0:04:08.3]}
21. Nc4 {[%clk 0:03:27.9]} 21... Qb4 {[%clk 0:04:03.7]} 22. Bxd4 {[%clk
0:03:24.2]} 22... cxd4 {[%clk 0:04:02.9]} 23. Ne2 {[%clk 0:03:23.4]} 23... Nb6
{[%clk 0:03:54.2]} 24. Nxd4 {[%clk 0:03:18]} 24... Nf6 {[%clk 0:03:49.4]} 25.
Nc6 {[%clk 0:03:09.5]} 25... Qc5+ {[%clk 0:03:48.1]} 26. Kh2 {[%clk 0:03:07.9]}
26... Rba8 {[%clk 0:03:45.7]} 27. Nxe7 {[%clk 0:03:03.2]} 27... Nxc4 {[%clk
0:03:44]} 28. bxc4 {[%clk 0:02:56.1]} 28... Qe3 {[%clk 0:03:40.3]} 29. Rf1
{[%clk 0:02:43]} 29... Nxe4 {[%clk 0:03:38.8]} 30. Rf3 {[%clk 0:02:33.3]} 30...
Qd4 {[%clk 0:03:32.5]} 31. Rd1 {[%clk 0:02:31.7]} 31... Qf6 {[%clk 0:03:07.6]}
32. Qxe4 {[%clk 0:02:29.7]} 32... Rxa2 {[%clk 0:03:06.2]} 33. Nc6 {[%clk
0:02:24.1]} 33... Rb2 {[%clk 0:03:00.1]} 34. Qd4 {[%clk 0:02:16.8]} 34... Qxd4
{[%clk 0:02:58.7]} 35. Rxd4 {[%clk 0:02:14.7]} 35... Raa2 {[%clk 0:02:57.4]} 36.
Rg3 {[%clk 0:02:13.8]} 36... h5 {[%clk 0:02:56]} 37. h4 {[%clk 0:02:12.3]} 37...
Rc2 {[%clk 0:02:54.2]} 38. f5 {[%clk 0:02:11]} 38... gxf5 {[%clk 0:02:53]} 39.
Ne7 {[%clk 0:02:09.8]} 39... f4 {[%clk 0:02:48.2]} 40. Rxf4 {[%clk 0:02:06.5]}
40... f5 {[%clk 0:02:46.1]} 41. Rxf5 {[%clk 0:01:53.6]} 41... Rxg2+ {[%clk
0:02:44.7]} 42. Rxg2 {[%clk 0:01:51.6]} 42... Rxg2+ {[%clk 0:02:43.8]} 43. Kxg2
{[%clk 0:01:51.2]} 43... Kh6 {[%clk 0:02:43]} 44. Rg5 {[%clk 0:01:49.7]} 44...
Kh7 {[%clk 0:02:42.1]} 45. Nf5 {[%clk 0:01:48.8]} 45... Kh8 {[%clk 0:02:40.7]}
46. Nxd6 {[%clk 0:01:48.6]} 46... Kh7 {[%clk 0:02:39.7]} 47. Ne4 {[%clk
0:01:48.5]} 47... Kh6 {[%clk 0:02:39.1]} 48. d6 {[%clk 0:01:48]} 48... Kh7
{[%clk 0:02:38.3]} 49. d7 {[%clk 0:01:47.5]} 49... Kh6 {[%clk 0:02:36.7]} 50.
d8=Q {[%clk 0:01:45.7]} 50... Kh7 {[%clk 0:02:36.1]} 51. Qe7+ {[%clk 0:01:45]}
51... Kh6 {[%clk 0:02:35.4]} 52. Qg7# {[%clk 0:01:44.9]} 1-0

[Event "Live Chess"]
[Site "Chess.com"]
[Date "2023.05.20"]
[Round "-"]
[White "JackRudd"]
[Black "LL220284LL"]
[Result "1-0"]
[WhiteElo "2419"]
[BlackElo "2409"]
[TimeControl "300"]
[EndTime "10:30:00 PDT"]
[Termination "JackRudd won by resignation"]

1. d4 {[%clk 0:04:57.4]} 1... Nf6 {[%clk 0:04:58.6]} 2. c4 {[%clk 0:04:56.1]}
2... e6 {[%clk 0:04:58]} 3. Nc3 {[%clk 0:04:55]} 3... Bb4 {[%clk 0:04:56.8]} 4.
f3 {[%clk 0:04:53.7]} 4... d5 {[%clk 0:04:54.6]} 5. a3 {[%clk 0:04:52.3]} 5...
Bxc3+ {[%clk 0:04:53.6]} 6. bxc3 {[%clk 0:04:51.1]} 6... O-O {[%clk 0:04:53.3]}
7. cxd5 {[%clk 0:04:48.1]} 7... exd5 {[%clk 0:04:52.3]} 8. e3 {[%clk 0:04:47]}
8... c5 {[%clk 0:04:51.8]} 9. Bd3 {[%clk 0:04:45.5]} 9... b6 {[%clk 0:04:51.4]}
10. Ne2 {[%clk 0:04:44]} 10... Ba6 {[%clk 0:04:50.2]} 11. O-O {[%clk 0:04:42.5]}
11... Bxd3 {[%clk 0:04:48.9]} 12. Qxd3 {[%clk 0:04:41.5]} 12... Re8 {[%clk
0:04:48]} 13. Ng3 {[%clk 0:04:40.1]} 13... Nc6 {[%clk 0:04:45.6]} 14. Ra2 {[%clk
0:04:38.9]} 14... h5 {[%clk 0:04:43.9]} 15. Re2 {[%clk 0:04:36.9]} 15... Qd7
{[%clk 0:04:34.8]} 16. Bb2 {[%clk 0:04:33.9]} 16... h4 {[%clk 0:04:28.4]} 17.
Nf5 {[%clk 0:04:31.7]} 17... h3 {[%clk 0:04:27.4]} 18. gxh3 {[%clk 0:04:29.4]}
18... g6 {[%clk 0:04:15.3]} 19. Nh6+ {[%clk 0:04:28]} 19... Kg7 {[%clk
0:04:14.6]} 20. Ng4 {[%clk 0:04:27.1]} 20... Nxg4 {[%clk 0:03:56]} 21. hxg4
{[%clk 0:04:24.5]} 21... Re6 {[%clk 0:03:43.5]} 22. c4 {[%clk 0:04:18.8]} 22...
cxd4 {[%clk 0:03:36.7]} 23. Bxd4+ {[%clk 0:04:16.5]} 23... Kg8 {[%clk
0:03:30.1]} 24. Bb2 {[%clk 0:04:12.5]} 24... d4 {[%clk 0:03:25.2]} 25. exd4
{[%clk 0:04:09.5]} 25... Rxe2 {[%clk 0:03:14.1]} 26. Qxe2 {[%clk 0:04:07.5]}
26... Nxd4 {[%clk 0:03:13.8]} 27. Qe5 {[%clk 0:04:02.7]} 27... Rd8 {[%clk
0:03:12.7]} 28. Qf6 {[%clk 0:04:00.2]} 28... Qd6 {[%clk 0:02:51.2]} 29. Qxd6
{[%clk 0:03:58.3]} 29... Rxd6 {[%clk 0:02:51.1]} 30. Kg2 {[%clk 0:03:56.3]}
30... Ne2 {[%clk 0:02:45.3]} 31. Re1 {[%clk 0:03:45]} 31... Rd2 {[%clk
0:02:41.9]} 32. Bf6 {[%clk 0:03:43.5]} 32... Kf8 {[%clk 0:02:18.7]} 33. Kf1
{[%clk 0:03:33.1]} 33... Nd4 {[%clk 0:02:09.6]} 34. Re3 {[%clk 0:03:24.4]} 34...
Ne6 {[%clk 0:02:01.5]} 35. h4 {[%clk 0:03:22]} 35... Ke8 {[%clk 0:01:56.8]} 36.
Ke1 {[%clk 0:03:11]} 36... Rc2 {[%clk 0:01:55.2]} 37. Re4 {[%clk 0:03:06.7]}
37... Kd7 {[%clk 0:01:52.8]} 38. h5 {[%clk 0:03:03.7]} 38... gxh5 {[%clk
0:01:49.3]} 39. gxh5 {[%clk 0:03:02.2]} 39... Rh2 {[%clk 0:01:31.3]} 40. Rh4
{[%clk 0:03:00.9]} 40... Ra2 {[%clk 0:01:28.3]} 41. h6 {[%clk 0:02:59.2]} 41...
Nf8 {[%clk 0:01:26.9]} 42. Bg7 {[%clk 0:02:51.3]} 42... Nh7 {[%clk 0:01:25.1]}
43. Rd4+ {[%clk 0:02:49.9]} 43... Ke6 {[%clk 0:01:22.7]} 44. Re4+ {[%clk
0:02:45.8]} 44... Kf5 {[%clk 0:01:19.7]} 45. Re7 {[%clk 0:02:44.1]} 45... Rxa3
{[%clk 0:01:17.2]} 46. Rxf7+ {[%clk 0:02:43]} 46... Kg6 {[%clk 0:01:16.4]} 47.
Rf4 {[%clk 0:02:40.6]} 47... Ra2 {[%clk 0:00:51.1]} 48. Rg4+ {[%clk 0:02:36.4]}
48... Kf5 {[%clk 0:00:49.2]} 49. Bc3 {[%clk 0:02:31.1]} 49... Rh2 {[%clk
0:00:46.5]} 50. Bd2 {[%clk 0:02:29.6]} 50... Nf6 {[%clk 0:00:39.6]} 51. Rg5+
{[%clk 0:02:26.9]} 51... Ke6 {[%clk 0:00:38.6]} 52. Rg7 {[%clk 0:02:25.6]} 52...
a5 {[%clk 0:00:36.1]} 53. Bg5 {[%clk 0:02:14.4]} 53... Nh5 {[%clk 0:00:29.1]}
54. Rb7 {[%clk 0:02:12]} 54... Kf5 {[%clk 0:00:26.4]} 55. Be3 {[%clk 0:02:05.4]}
55... Ng3 {[%clk 0:00:22.5]} 56. h7 {[%clk 0:02:01.8]} 56... Ke5 {[%clk
0:00:12.1]} 57. Bf2 {[%clk 0:01:56.6]} 57... Nf5 {[%clk 0:00:10.6]} 58. Bxb6
{[%clk 0:01:53.9]} 58... Kf4 {[%clk 0:00:09.3]} 59. Bc7+ {[%clk 0:01:52.3]} 1-0

[Event "Live Chess"]
[Site "Chess.com"]
[Date "2023.05.20"]
[Round "-"]
[White "ACx04"]
[Black "lightningorderyt"]
[Result "1/2-1/2"]
[WhiteElo "433"]
[BlackElo "518"]
[TimeControl "300"]
[EndTime "10:30:01 PDT"]
[Termination "Game drawn by stalemate"]

1. e4 {[%clk 0:04:59.7]} 1... c6 {[%clk 0:04:57.7]} 2. c4 {[%clk 0:04:55.9]}
2... d5 {[%clk 0:04:38.1]} 3. exd5 {[%clk 0:04:54.2]} 3... cxd5 {[%clk
0:04:36.9]} 4. c5 {[%clk 0:04:53.2]} 4... Nc6 {[%clk 0:04:35.3]} 5. d4 {[%clk
0:04:51.3]} 5... Nf6 {[%clk 0:04:31.4]} 6. Nf3 {[%clk 0:04:47.9]} 6... Bg4
{[%clk 0:04:28.2]} 7. h3 {[%clk 0:04:45.5]} 7... Bh5 {[%clk 0:04:24.5]} 8. g4
{[%clk 0:04:43.8]} 8... Bg6 {[%clk 0:04:23.6]} 9. Bg5 {[%clk 0:04:37.2]} 9... e6
{[%clk 0:04:16.2]} 10. Nc3 {[%clk 0:04:35.2]} 10... Be7 {[%clk 0:03:55.9]} 11.
Bxf6 {[%clk 0:04:32.2]} 11... Bxf6 {[%clk 0:03:53.3]} 12. Ne5 {[%clk 0:04:29.1]}
12... Nxe5 {[%clk 0:03:50]} 13. dxe5 {[%clk 0:04:27.9]} 13... Bxe5 {[%clk
0:03:49.4]} 14. Ne2 {[%clk 0:04:22.4]} 14... O-O {[%clk 0:03:34.3]} 15. Rc1
{[%clk 0:04:16]} 15... Bxb2 {[%clk 0:03:27.6]} 16. Rc2 {[%clk 0:04:13]} 16...
Be5 {[%clk 0:03:21.6]} 17. c6 {[%clk 0:04:03.7]} 17... Bxc2 {[%clk 0:03:09.2]}
18. Qxc2 {[%clk 0:04:01.5]} 18... Rc8 {[%clk 0:03:06.8]} 19. Ng3 {[%clk
0:03:57.1]} 19... bxc6 {[%clk 0:02:51.1]} 20. Bd3 {[%clk 0:03:55.4]} 20... g6
{[%clk 0:02:45.8]} 21. h4 {[%clk 0:03:50.5]} 21... Bxg3 {[%clk 0:02:31.8]} 22.
fxg3 {[%clk 0:03:46.5]} 22... c5 {[%clk 0:02:25.8]} 23. h5 {[%clk 0:03:43.7]}
23... c4 {[%clk 0:02:08.4]} 24. Be2 {[%clk 0:03:33.3]} 24... Qa5+ {[%clk
0:01:56.6]} 25. Kf2 {[%clk 0:03:27.8]} 25... Qc5+ {[%clk 0:01:43]} 26. Kg2
{[%clk 0:03:25.9]} 26... d4 {[%clk 0:01:41.4]} 27. hxg6 {[%clk 0:03:23.8]} 27...
fxg6 {[%clk 0:01:33.4]} 28. Bxc4 {[%clk 0:03:19.2]} 28... Qxc4 {[%clk 0:01:25]}
29. Qxc4 {[%clk 0:03:17.3]} 29... Rxc4 {[%clk 0:01:24.9]} 30. g5 {[%clk
0:03:13.7]} 30... Rd8 {[%clk 0:01:23.7]} 31. a3 {[%clk 0:03:11.3]} 31... d3
{[%clk 0:01:22.8]} 32. Rd1 {[%clk 0:03:09]} 32... d2 {[%clk 0:01:21.7]} 33. g4
{[%clk 0:03:04.7]} 33... Rc1 {[%clk 0:01:20.5]} 34. Rxd2 {[%clk 0:03:02.8]}
34... Rxd2+ {[%clk 0:01:18.3]} 35. Kh3 {[%clk 0:03:02.1]} 35... Rc3+ {[%clk
0:01:15.8]} 36. Kh4 {[%clk 0:03:01]} 36... Rxa3 {[%clk 0:01:14.9]} 1/2-1/2

[Event "Live Chess"]
[Site "Chess.com"]
[Date "2023.05.20"]
[Round "-"]
[White "AttackingSnowLeopard"]
[Black "Delacorta"]
[Result "1-0"]
[WhiteElo "2065"]
[BlackElo "1392"]
[TimeControl "300"]
[EndTime "10:30:02 PDT"]
[Termination "AttackingSnowLeopard won by resignation"]

1. d4 {[%clk 0:04:58.6]} 1... e6 {[%clk 0:04:58.8]} 2. c4 {[%clk 0:04:58.2]}
2... f5 {[%clk 0:04:58]} 3. g3 {[%clk 0:04:57.2]} 3... Nf6 {[%clk 0:04:57.3]} 4.
Bg2 {[%clk 0:04:56.6]} 4... c6 {[%clk 0:04:56.7]} 5. Nf3 {[%clk 0:04:56.2]} 5...
d5 {[%clk 0:04:55.3]} 6. O-O {[%clk 0:04:55.5]} 6... Be7 {[%clk 0:04:52.8]} 7.
b3 {[%clk 0:04:55]} 7... O-O {[%clk 0:04:50.6]} 8. Ba3 {[%clk 0:04:53.4]} 8...
Bxa3 {[%clk 0:04:44.1]} 9. Nxa3 {[%clk 0:04:53.3]} 9... Ne4 {[%clk 0:04:40.6]}
10. Nb1 {[%clk 0:04:49.5]} 10... Bd7 {[%clk 0:04:38.3]} 11. Ne5 {[%clk
0:04:48.1]} 11... Be8 {[%clk 0:04:37.1]} 12. Nd2 {[%clk 0:04:47.8]} 12... Nd7
{[%clk 0:04:35.4]} 13. Ndf3 {[%clk 0:04:45.9]} 13... Bh5 {[%clk 0:04:26.1]} 14.
Nxd7 {[%clk 0:04:44]} 14... Qxd7 {[%clk 0:04:22.6]} 15. Ne5 {[%clk 0:04:43.1]}
15... Qc7 {[%clk 0:04:10.4]} 16. f3 {[%clk 0:04:38.2]} 16... Nd6 {[%clk
0:03:56.2]} 17. Qd2 {[%clk 0:04:34.1]} 17... Be8 {[%clk 0:03:28.8]} 18. e4
{[%clk 0:04:27.3]} 18... fxe4 {[%clk 0:03:26.7]} 19. fxe4 {[%clk 0:04:25.8]}
19... Nxe4 {[%clk 0:03:25.3]} 20. Rxf8+ {[%clk 0:04:21.5]} 20... Kxf8 {[%clk
0:03:23.9]} 21. Bxe4 {[%clk 0:04:19.9]} 21... dxe4 {[%clk 0:03:22.6]} 22. Qf4+
{[%clk 0:04:18.8]} 22... Kg8 {[%clk 0:03:16.4]} 23. Rf1 {[%clk 0:04:15.2]} 23...
Bg6 {[%clk 0:03:02.2]} 24. Nxg6 {[%clk 0:04:13.3]} 24... hxg6 {[%clk 0:03:01.3]}
25. Qxc7 {[%clk 0:04:11.9]} 1-0

[Event "Live Chess"]
[Site "Chess.com"]
[Date "2023.05.20"]
[Round "-"]
[White "Hacker_2009"]
[Black "Bob2pen"]
[Result "1/2-1/2"]
[WhiteElo "1908"]
[BlackElo "1766"]
[TimeControl "300"]
[EndTime "10:30:04 PDT"]
[Termination "Game drawn - insufficient material"]

1. d4 {[%clk 0:04:58]} 1... Nf6 {[%clk 0:04:56.5]} 2. Nf3 {[%clk 0:04:57.1]}
2... c5 {[%clk 0:04:55.2]} 3. e3 {[%clk 0:04:55.9]} 3... g6 {[%clk 0:04:53.7]}
4. c4 {[%clk 0:04:53.6]} 4... Bg7 {[%clk 0:04:50.4]} 5. Nc3 {[%clk 0:04:50.4]}
5... O-O {[%clk 0:04:49]} 6. Be2 {[%clk 0:04:44.3]} 6... d6 {[%clk 0:04:47.5]}
7. O-O {[%clk 0:04:39.7]} 7... Nc6 {[%clk 0:04:45.9]} 8. b3 {[%clk 0:04:36.4]}
8... a6 {[%clk 0:04:42.2]} 9. Bb2 {[%clk 0:04:35.2]} 9... Bg4 {[%clk 0:04:39.5]}
10. Rc1 {[%clk 0:04:34]} 10... Rc8 {[%clk 0:04:35.9]} 11. a3 {[%clk 0:04:31.1]}
11... cxd4 {[%clk 0:04:22]} 12. Nxd4 {[%clk 0:04:29.1]} 12... Bxe2 {[%clk
0:04:20]} 13. Qxe2 {[%clk 0:04:26.8]} 13... Nxd4 {[%clk 0:04:18.4]} 14. exd4
{[%clk 0:04:25.7]} 14... Re8 {[%clk 0:04:09.1]} 15. Rfe1 {[%clk 0:04:23.9]}
15... e5 {[%clk 0:04:06.2]} 16. dxe5 {[%clk 0:04:23.1]} 16... dxe5 {[%clk
0:04:03.8]} 17. Red1 {[%clk 0:04:21.6]} 17... Qe7 {[%clk 0:03:59.9]} 18. Nd5
{[%clk 0:04:19.8]} 18... Nxd5 {[%clk 0:03:58.3]} 19. cxd5 {[%clk 0:04:18.8]}
19... Qd6 {[%clk 0:03:52.3]} 20. Qe4 {[%clk 0:04:15.3]} 20... Red8 {[%clk
0:03:48.1]} 21. Rxc8 {[%clk 0:04:13.1]} 21... Rxc8 {[%clk 0:03:46.6]} 22. h3
{[%clk 0:04:08.3]} 22... f5 {[%clk 0:03:45.2]} 23. Qb4 {[%clk 0:04:07]} 23...
Qxb4 {[%clk 0:03:43]} 24. axb4 {[%clk 0:04:06.9]} 24... Bf8 {[%clk 0:03:42]} 25.
Bxe5 {[%clk 0:04:05]} 25... Bxb4 {[%clk 0:03:40.3]} 26. d6 {[%clk 0:04:04]}
26... Rd8 {[%clk 0:03:39.2]} 27. d7 {[%clk 0:04:03.2]} 27... Kf7 {[%clk
0:03:36.2]} 28. Bc7 {[%clk 0:04:01.9]} 28... Ke7 {[%clk 0:03:34.5]} 29. Bxd8+
{[%clk 0:04:00.9]} 29... Kxd8 {[%clk 0:03:33.7]} 30. Rd4 {[%clk 0:03:57.2]}
30... Be7 {[%clk 0:03:30.8]} 31. Kf1 {[%clk 0:03:53.7]} 31... b5 {[%clk
0:03:27.1]} 32. Ke2 {[%clk 0:03:51.8]} 32... Kc7 {[%clk 0:03:26.3]} 33. Kd3
{[%clk 0:03:50.6]} 33... Bd8 {[%clk 0:03:25.5]} 34. b4 {[%clk 0:03:44.8]} 34...
Kc6 {[%clk 0:03:24.4]} 35. g4 {[%clk 0:03:40.1]} 35... fxg4 {[%clk 0:03:19.5]}
36. hxg4 {[%clk 0:03:39.3]} 36... h5 {[%clk 0:03:18.7]} 37. gxh5 {[%clk
0:03:37.9]} 37... gxh5 {[%clk 0:03:17.9]} 38. Ke4 {[%clk 0:03:36.8]} 38... h4
{[%clk 0:03:16.9]} 39. Kf3 {[%clk 0:03:35.5]} 39... Kb6 {[%clk 0:03:13.3]} 40.
Kg4 {[%clk 0:03:32.9]} 40... a5 {[%clk 0:03:12.3]} 41. bxa5+ {[%clk 0:03:27.5]}
41... Kxa5 {[%clk 0:03:10.9]} 42. f4 {[%clk 0:03:25.5]} 42... b4 {[%clk
0:03:09.9]} 43. f5 {[%clk 0:03:24.5]} 43... b3 {[%clk 0:03:09]} 44. f6 {[%clk
0:03:23.7]} 44... Bxf6 {[%clk 0:03:06.1]} 45. Rd1 {[%clk 0:03:19.3]} 45... Kb4
{[%clk 0:03:01.7]} 46. d8=Q {[%clk 0:03:16.9]} 46... Bxd8 {[%clk 0:03:00.3]} 47.
Rxd8 {[%clk 0:03:15.9]} 47... b2 {[%clk 0:02:57.5]} 48. Kxh4 {[%clk 0:03:15.1]}
48... Kc3 {[%clk 0:02:54.5]} 49. Rc8+ {[%clk 0:03:13.9]} 49... Kd2 {[%clk
0:02:51.2]} 50. Rb8 {[%clk 0:03:13.5]} 50... Kc2 {[%clk 0:02:50.1]} 51. Rxb2+
{[%clk 0:03:12.2]} 51... Kxb2 {[%clk 0:02:49]} 1/2-1/2

[Event "Live Chess"]
[Site "Chess.com"]
[Date "2023.05.20"]
[Round "-"]
[White "Outspanner"]
[Black "jennybobby44"]
[Result "0-1"]
[WhiteElo "1537"]
[BlackElo "1845"]
[TimeControl "300"]
[EndTime "10:30:09 PDT"]
[Termination "jennybobby44 won on time"]

1. d4 {[%clk 0:04:56.2]} 1... Nf6 {[%clk 0:04:57.7]} 2. Bg5 {[%clk 0:04:54.6]}
2... d5 {[%clk 0:04:56]} 3. Bxf6 {[%clk 0:04:52.1]} 3... exf6 {[%clk 0:04:55]}
4. e3 {[%clk 0:04:51.5]} 4... Bd6 {[%clk 0:04:52.6]} 5. c4 {[%clk 0:04:49.4]}
5... dxc4 {[%clk 0:04:48.3]} 6. Bxc4 {[%clk 0:04:49.3]} 6... O-O {[%clk
0:04:36.9]} 7. Ne2 {[%clk 0:04:43.7]} 7... c5 {[%clk 0:04:35.4]} 8. O-O {[%clk
0:04:37.5]} 8... cxd4 {[%clk 0:04:34.4]} 9. Nxd4 {[%clk 0:04:35.8]} 9... a6
{[%clk 0:04:26]} 10. a4 {[%clk 0:04:27]} 10... Qc7 {[%clk 0:04:07.2]} 11. Bd3
{[%clk 0:04:19.3]} 11... Bxh2+ {[%clk 0:04:03.9]} 12. Kh1 {[%clk 0:04:19.2]}
12... Be5 {[%clk 0:04:02.4]} 13. Nc3 {[%clk 0:04:10.8]} 13... Be6 {[%clk
0:03:56]} 14. Rc1 {[%clk 0:04:04.7]} 14... Qe7 {[%clk 0:03:47.6]} 15. g3 {[%clk
0:03:21.1]} 15... g6 {[%clk 0:03:39.6]} 16. Kg2 {[%clk 0:03:18.3]} 16... Kg7
{[%clk 0:03:20.9]} 17. Qd2 {[%clk 0:02:40.2]} 17... Nc6 {[%clk 0:03:18.5]} 18.
Nxc6 {[%clk 0:02:22.8]} 18... bxc6 {[%clk 0:03:17.3]} 19. f4 {[%clk 0:01:58.9]}
19... Bxc3 {[%clk 0:03:14]} 20. bxc3 {[%clk 0:01:57.6]} 20... Bd5+ {[%clk
0:02:51.6]} 21. Kg1 {[%clk 0:01:45.1]} 21... Rfd8 {[%clk 0:02:45]} 22. Qe2
{[%clk 0:01:39.3]} 22... Be4 {[%clk 0:02:40]} 23. Rfd1 {[%clk 0:01:26.1]} 23...
Bxd3 {[%clk 0:02:35.5]} 24. Rxd3 {[%clk 0:01:24.3]} 24... Rxd3 {[%clk
0:02:32.1]} 25. Qxd3 {[%clk 0:01:24.2]} 25... Re8 {[%clk 0:02:31.1]} 26. Kf2
{[%clk 0:01:20.3]} 26... Qa3 {[%clk 0:02:26.4]} 27. Rb1 {[%clk 0:00:42.6]} 27...
Qxa4 {[%clk 0:02:20.6]} 28. Rb7 {[%clk 0:00:39.3]} 28... Qa2+ {[%clk 0:02:11.3]}
29. Kf3 {[%clk 0:00:34.3]} 29... h5 {[%clk 0:02:05.4]} 30. Rb6 {[%clk
0:00:25.2]} 30... Qd5+ {[%clk 0:01:47.8]} 31. Qxd5 {[%clk 0:00:23.6]} 31... cxd5
{[%clk 0:01:47]} 32. Rxa6 {[%clk 0:00:23.4]} 32... Rc8 {[%clk 0:01:45.9]} 33.
Ra3 {[%clk 0:00:20.9]} 33... Rc4 {[%clk 0:01:44.5]} 34. Ke2 {[%clk 0:00:19.4]}
34... f5 {[%clk 0:01:41.5]} 35. Kd3 {[%clk 0:00:17.7]} 35... Kf6 {[%clk
0:01:38]} 36. Ra6+ {[%clk 0:00:15.8]} 36... Ke7 {[%clk 0:01:34.9]} 37. Ra5
{[%clk 0:00:13.4]} 37... Kd6 {[%clk 0:01:32.7]} 38. Ra6+ {[%clk 0:00:12.6]}
38... Rc6 {[%clk 0:01:31.8]} 39. Ra7 {[%clk 0:00:11]} 39... Rc7 {[%clk
0:01:27.6]} 40. Ra6+ {[%clk 0:00:09.2]} 40... Kc5 {[%clk 0:01:25]} 41. Ra5+
{[%clk 0:00:07.7]} 41... Kc6 {[%clk 0:01:22.1]} 42. Ra6+ {[%clk 0:00:06.1]}
42... Kd7 {[%clk 0:01:19.8]} 43. Rf6 {[%clk 0:00:04.4]} 43... Ke7 {[%clk
0:01:15.4]} 44. Ra6 {[%clk 0:00:03.4]} 44... f6 {[%clk 0:01:11.6]} 45. Kd4
{[%clk 0:00:02.3]} 45... Rd7 {[%clk 0:01:06.5]} 46. Ra5 {[%clk 0:00:01]} 46...
g5 {[%clk 0:01:05.4]} 0-1

[Event "Live Chess"]
[Site "Chess.com"]
[Date "2023.05.20"]
[Round "-"]
[White "ranvir123"]
[Black "ClassyChameleon"]
[Result "0-1"]
[WhiteElo "902"]
[BlackElo "1049"]
[TimeControl "300"]
[EndTime "10:30:10 PDT"]
[Termination "ClassyChameleon won by resignation"]

1. e4 {[%clk 0:04:57.7]} 1... e5 {[%clk 0:04:59.2]} 2. Nf3 {[%clk 0:04:54.8]}
2... Nc6 {[%clk 0:04:58.2]} 3. Bc4 {[%clk 0:04:53.1]} 3... Nf6 {[%clk
0:04:56.8]} 4. Ng5 {[%clk 0:04:50.2]} 4... Nxe4 {[%clk 0:04:56.1]} 5. Bxf7+
{[%clk 0:04:43.4]} 5... Ke7 {[%clk 0:04:52.9]} 6. Qf3 {[%clk 0:04:32.9]} 6...
Nxg5 {[%clk 0:04:50.6]} 7. Bd5 {[%clk 0:04:28.7]} 7... Nxf3+ {[%clk 0:04:48.7]}
8. gxf3 {[%clk 0:04:22.7]} 8... Kd6 {[%clk 0:04:43.2]} 9. Bxc6 {[%clk
0:04:20.6]} 9... bxc6 {[%clk 0:04:38.3]} 10. c4 {[%clk 0:04:18.8]} 10... c5
{[%clk 0:04:35.9]} 11. Nc3 {[%clk 0:04:18]} 11... c6 {[%clk 0:04:33.5]} 12. d4
{[%clk 0:04:14.8]} 12... exd4 {[%clk 0:04:31.7]} 13. Bf4+ {[%clk 0:04:14.3]}
13... Ke6 {[%clk 0:04:26.7]} 14. Ne4 {[%clk 0:04:12.9]} 14... Qa5+ {[%clk
0:04:16]} 15. Ke2 {[%clk 0:04:09.5]} 15... d5 {[%clk 0:04:10.3]} 16. Ng5+ {[%clk
0:04:05.1]} 16... Kf5 {[%clk 0:04:08.4]} 17. Nh3 {[%clk 0:04:01.4]} 17... dxc4
{[%clk 0:04:04.9]} 18. Rhg1 {[%clk 0:04:00.4]} 18... d3+ {[%clk 0:04:02.3]} 19.
Ke3 {[%clk 0:03:58.8]} 19... h6 {[%clk 0:03:54.1]} 0-1